bitfinex-derivatives/quotes_ETHF0:USTF0_20251005
["timestamp","ask_amount","ask_price","bid_price","bid_amount"]
[1759695279182,0.9025,4499.2,4499.1,0.2679268]
[1759695279682,1.30249,4499.2,4499.1,0.2679268]
[1759695279886,1.30249,4499.2,4499.1,0.0027268]
[1759695284187,0.9025,4499.2,4499.1,0.0027268]
[1759695286996,4.1103,4499.2,4499.1,0.0027268]
[1759695290991,5.11662412,4499.2,4499.1,0.0027268]
[1759695293993,1.90882412,4499.2,4499.1,0.0027268]
[1759695294192,5.11662412,4499.2,4499.1,0.0027268]
[1759695296499,0.9025,4499.2,4499.1,0.4370168]
[1759695297698,0.9025,4499.2,4499.1,0.4713168]
[1759695297894,0.9025,4499.2,4499.1,0.0370268]
[1759695298095,0.9025,4499.2,4499.1,0.0027268]
[1759695300894,0.9025,4499.2,4499.1,0.0713268]
[1759695301098,0.3894,4499.2,4499.1,6.68911966]
[1759695301898,0.3894,4499.2,4499.1,5.0928268]
[1759695302094,0.5325,4499.5,4499.4,0.49007]
[1759695302300,0.3768,4499.5,4499.4,3.92087]
[1759695302696,0.3768,4499.5,4499.4,8.92087]
[1759695303896,4.21412412,4500.3,4499.9,0.46852]
[1759695304095,0.2473,4501.4,4501.3,0.2697]
[1759695304295,0.5194,4501.4,4501.3,0.4927]
[1759695304604,0.8962,4501.4,4501.3,0.4927]
[1759695305201,0.8962,4501.4,4501.3,0.2697]
[1759695305398,0.8962,4501.4,4501.3,0.4927]
[1759695307500,0.8962,4501.4,4501.3,1.1261]
[1759695307798,0.6489,4501.4,4501.3,1.31310246]
[1759695308801,0.6489,4501.9,4501.8,0.9031]
[1759695309008,0.6489,4501.9,4501.8,1.1261]
[1759695309009,0.8962,4501.9,4501.8,1.1261]
[1759695309501,0.8962,4501.9,4501.8,0.7415]
[1759695310508,0.8962,4501.9,4501.8,1.14125]
[1759695310909,0.8962,4501.9,4501.8,1.52585]
[1759695311804,0.3768,4501.9,4501.8,2.53217412]
[1759695312011,0.65122903,4502.2,4502.1,0.9031]
[1759695312202,0.65122903,4502.2,4502.1,4.3339]
[1759695312909,0.00232903,4502.2,4502.1,5.73995412]
[1759695313608,0.00232903,4502.2,4502.1,5.34022412]
[1759695313812,0.37912903,4502.2,4502.1,4.3339]
[1759695314010,0.65122903,4502.2,4502.1,4.3339]
[1759695316506,0.89852903,4502.2,4502.1,3.2078]
[1759695316715,1.29601,4501.3,4501.2,0.2697]
[1759695317307,1.29601,4501.3,4501.2,0.5185]
[1759695317507,0.9011,4501.2,4501.1,3.2078]
[1759695317707,0.9011,4501.2,4501.1,3.4308]
[1759695318107,0.9011,4501.2,4501.1,3.2078]
[1759695318307,0.1557,4501.5,4500.6,3.2078]
[1759695318308,0.9011,4500.7,4500.6,3.2078]
[1759695318520,0.1614,4501.0,4500.4,1.75327352]
[1759695318521,1.0625,4500.5,4500.4,1.75327352]
[1759695318716,1.0625,4500.5,4500.4,0.223]
[1759695318914,0.3999,4500.3,4500.1,3.2078]
[1759695319115,0.9011,4499.7,4499.6,3.2078]
[1759695319416,1.90742412,4499.7,4499.6,3.2078]
[1759695319615,1.90742412,4499.7,4499.5,0.223]
[1759695319821,0.2511,4499.2,4499.1,3.2105268]
[1759695320012,1.30109,4499.2,4499.1,0.2257268]
[1759695320212,1.30109,4499.2,4499.1,0.0027268]
[1759695320420,0.6719,4499.0,4498.9,0.223]
[1759695320618,1.0625,4499.0,4498.9,0.223]
[1759695321416,1.06441899,4499.0,4498.9,0.22468107]
[1759695321612,1.06441899,4499.0,4498.9,0.00168107]
[1759695321613,2.07074311,4499.0,4498.9,0.00168107]
[1759695322019,0.6417,4497.8,4497.7,4.0853]
[1759695322222,0.9011,4497.8,4497.7,3.935]
[1759695322918,0.9011,4497.8,4497.7,3.93730739]
[1759695323315,0.9011,4497.8,4497.7,4.31060739]
[1759695323723,0.9011,4497.8,4497.7,4.08760739]
[1759695324025,0.9011,4497.8,4497.7,4.31060739]
[1759695325117,0.1614,4498.0,4497.9,0.2553]
[1759695325118,0.3906,4498.0,4497.9,0.2553]
[1759695325422,0.8031,4498.0,4497.9,1.1005]
[1759695325614,0.6417,4498.0,4497.9,1.1005]
[1759695325819,0.3906,4498.9,4498.0,0.1361]
[1759695326018,1.40634412,4498.9,4498.1,0.5963]
[1759695326323,0.6417,4498.2,4498.1,0.6005]
[1759695326525,0.6417,4498.2,4498.1,0.7272]
[1759695326922,0.6417,4498.2,4498.1,1.12728]
[1759695327623,0.3906,4498.2,4498.1,1.12728]
[1759695327824,0.3906,4498.4,4498.3,0.90427]
[1759695328025,0.3906,4498.4,4498.3,4.33507]
[1759695328224,0.41441899,4499.0,4498.9,0.5042]
[1759695328521,0.67381899,4499.0,4498.9,0.7272]
[1759695329027,1.06441899,4499.0,4498.9,0.7272]
[1759695330026,1.06441899,4499.0,4498.9,0.4783]
[1759695331525,0.3906,4498.4,4498.3,3.2078]
[1759695331729,0.9011,4498.4,4498.3,3.4308]
[1759695332123,0.9011,4498.4,4498.3,3.6861]
[1759695332833,0.91970786,4498.4,4498.3,3.6861]
[1759695333132,0.91970786,4498.4,4498.3,3.9452]
[1759695336738,0.92070786,4498.4,4498.3,3.9452]
[1759695338035,0.41020786,4498.4,4498.3,4.1178]
[1759695338435,0.67780786,4498.4,4498.3,4.1178]
[1759695338635,0.67780786,4498.4,4498.3,3.7222]
[1759695338938,0.69015732,4498.4,4498.3,3.9452]
[1759695339531,0.42255732,4498.4,4498.3,4.1178]
[1759695340131,0.42835864,4498.4,4498.3,4.1178]
[1759695340734,0.69595864,4498.4,4498.3,4.1178]
[1759695341041,0.69595864,4498.4,4498.3,3.9452]
[1759695341244,0.42835864,4498.4,4498.3,4.1178]
[1759695342534,0.69595864,4498.4,4498.3,4.1178]
[1759695342734,0.69595864,4498.4,4498.3,3.9452]
[1759695342934,0.95375864,4498.4,4498.3,3.9452]
[1759695343441,0.95375864,4498.4,4498.3,3.7222]
[1759695343742,0.95375864,4498.4,4498.3,3.9452]
[1759695344536,0.95375864,4498.4,4498.3,5.12412412]
[1759695344537,0.03775864,4498.4,4498.3,5.12412412]
[1759695344730,0.00191899,4499.0,4498.9,1.08021]
[1759695344936,0.37411899,4499.0,4498.9,1.30321]
[1759695345135,0.00191899,4499.0,4498.9,2.20954412]
[1759695345440,0.00191899,4499.0,4498.9,7.20954412]
[1759695347039,0.00191899,4499.0,4498.9,6.98654412]
[1759695347342,0.80451899,4499.0,4498.9,0.63061]
[1759695348234,0.80451899,4499.0,4498.9,0.40761]
[1759695348435,0.4038,4498.9,4498.8,4.80268231]
[1759695348636,0.9416,4498.9,4498.8,3.4308]
[1759695348838,0.9416,4498.9,4498.8,3.5433]
[1759695349447,0.4038,4498.9,4498.8,5.32098231]
[1759695350544,0.4038,4498.9,4498.8,5.25068231]
[1759695351041,0.16471899,4499.0,4498.8,5.25068231]
[1759695351042,0.00191899,4499.0,4498.9,0.69531]
[1759695351442,0.40571899,4499.0,4498.9,0.69531]
[1759695356239,0.55831899,4499.0,4498.9,0.69531]
[1759695357448,0.55831899,4499.0,4498.9,2.29019231]
[1759695357850,0.82651899,4499.0,4498.9,2.21989231]
[1759695360249,1.09611899,4499.0,4498.9,0.448]
[1759695360742,0.40571899,4499.0,4498.9,0.5183]
[1759695360945,0.6992,4500.0,4499.9,0.4952]
[1759695361153,0.6992,4500.0,4499.9,1.1255]
[1759695361753,0.6992,4500.0,4499.9,0.4678]
[1759695361955,0.2682,4499.3,4499.2,5.70518231]
[1759695362145,0.5378,4499.3,4499.2,5.27048231]
[1759695362650,0.5378,4499.3,4499.2,5.04748231]
[1759695363045,0.9416,4499.3,4499.2,3.6756]
[1759695364157,0.5378,4499.3,4499.0,1.59488231]
[1759695364355,0.9416,4499.2,4499.1,0.223]
[1759695365753,1.0942,4499.0,4498.8,1.59488231]
[1759695365951,0.5378,4498.7,4498.6,4.80268231]
[1759695366152,0.9416,4498.7,4498.6,3.4308]
[1759695366351,0.9416,4498.7,4498.6,0.223]
[1759695367058,0.2682,4498.3,4498.2,1.83968231]
[1759695367252,0.672,4498.2,4498.1,5.04748231]
[1759695367455,0.672,4498.2,4498.1,5.92818231]
[1759695368663,0.9416,4498.2,4498.1,5.92818231]
[1759695368864,0.9416,4498.2,4498.1,5.27048231]
[1759695369459,0.9416,4498.2,4498.1,5.52088231]
[1759695369665,0.9416,4498.2,4498.1,5.92818231]
[1759695370053,0.9416,4498.2,4498.1,5.27048231]
[1759695370250,0.9416,4498.2,4498.1,3.4308]
[1759695371162,0.4001,4497.9,4497.7,1.5971897]
[1759695371356,0.9416,4497.8,4497.7,0.00230739]
[1759695371657,0.9416,4497.7,4497.6,3.2078]
[1759695372461,0.9416,4497.7,4497.6,3.20937616]
[1759695373465,0.6904,4497.0,4496.9,1.59488231]
[1759695373667,0.672,4497.0,4496.9,2.72038231]
[1759695374056,0.672,4497.0,4496.9,2.49738231]
[1759695374264,0.672,4497.0,4496.9,0.90466114]
[1759695374566,0.672,4497.0,4496.9,1.12766114]
[1759695374868,0.8246,4497.0,4496.9,1.12766114]
[1759695375065,1.0942,4497.0,4496.9,0.72036114]
[1759695375266,1.0942,4497.0,4496.9,1.12766114]
[1759695375758,1.0942,4497.0,4496.9,0.72036114]
[1759695376159,1.0942,4497.0,4496.9,1.12766114]
[1759695376560,0.4038,4497.0,4496.9,1.12766114]
[1759695376853,0.4038,4497.4,4496.9,1.12055114]
[1759695377056,0.5378,4497.1,4497.0,0.9025]
[1759695377256,0.9416,4497.1,4497.0,0.7182]
[1759695377462,0.9416,4497.1,4497.0,1.0856]
[1759695377960,0.1493,4497.0,4496.9,0.00216114]
[1759695378159,1.0585,4497.0,4496.9,0.22516114]
[1759695379369,1.0585,4497.0,4496.9,0.00216114]
[1759695379570,1.0585,4497.0,4496.9,0.49336114]
[1759695380270,1.0585,4497.0,4496.9,0.73886114]
[1759695381963,1.0585,4497.0,4496.9,0.22516114]
[1759695382270,1.0585,4497.0,4496.9,0.00216114]
[1759695382477,1.07799,4497.0,4496.6,3.2078]
[1759695382769,0.9092,4496.7,4496.6,3.2078]
[1759695382971,0.9092,4496.7,4496.6,0.223]
[1759695383364,0.91177129,4496.7,4496.6,0.22541726]
[1759695383768,0.91177129,4496.7,4496.6,0.49361726]
[1759695384574,0.91177129,4496.7,4496.6,0.00241726]
[1759695384770,0.91177129,4496.7,4496.6,0.22541726]
[1759695385965,4.11957129,4496.7,4496.6,0.22541726]
[1759695386166,0.9092,4495.9,4495.8,0.8811]
[1759695386366,0.9092,4495.9,4495.8,0.4912]
[1759695386772,0.9092,4495.9,4495.8,0.2682]
[1759695386970,0.9092,4495.9,4495.8,0.4912]
[1759695387169,0.9092,4495.9,4495.8,0.49358717]
[1759695387373,0.9092,4495.9,4495.8,0.22538717]
[1759695387678,0.9092,4495.9,4495.8,0.00238717]
[1759695389475,0.9092,4495.9,4495.7,0.223]
[1759695389876,0.9092,4495.9,4495.8,0.2682]
[1759695390273,0.9092,4495.9,4495.8,0.2702057]
[1759695390468,0.9092,4495.9,4495.8,0.0020057]
[1759695392280,0.9092,4495.9,4495.7,0.223]
[1759695393279,0.9092,4495.9,4495.7,0.22587857]
[1759695395678,0.9092,4495.9,4495.7,0.223]
[1759695396580,0.9092,4495.9,4495.7,0.22555457]
[1759695397978,0.9092,4495.9,4495.7,0.00255457]
[1759695398279,0.9092,4495.9,4495.8,0.223]
[1759695399583,0.9092,4495.9,4495.8,0.22487415]
[1759695399979,0.9092,4495.9,4495.8,0.223]
[1759695400985,0.9092,4495.9,4495.8,0.2252829]
[1759695402389,0.9092,4495.9,4495.7,0.223]
[1759695402882,0.9092,4495.9,4495.6,3.2078]
[1759695403077,0.3721,4495.8,4495.7,0.223]
[1759695403284,0.8673,4495.8,4495.7,0.22518022]
[1759695403983,2.0747014,4495.8,4495.7,0.00218022]
[1759695404186,0.4952,4495.4,4495.3,0.223]
[1759695404387,2.0747014,4495.4,4495.3,0.223]
[1759695405184,2.0747014,4495.4,4495.3,0.22554991]
[1759695407386,2.4750214,4495.4,4495.3,0.00254991]
[1759695407583,2.0747014,4495.4,4495.3,0.22554991]
[1759695407981,2.0747014,4495.4,4494.3,0.3872]
[1759695407982,0.163,4494.5,4493.7,1.59646981]
[1759695408185,2.4148028,4494.0,4493.6,0.0792]
[1759695408389,3.2078,4493.7,4493.6,0.0792]
[1759695408581,3.69238187,4493.7,4493.5,0.154]
[1759695408784,1.2074014,4493.3,4493.0,0.42]
[1759695409092,3.2078,4493.1,4493.0,0.4215728]
[1759695410490,3.2078,4493.1,4493.0,0.8087728]
[1759695411380,3.2078,4493.1,4493.0,0.3087728]
[1759695411581,0.00192793,4493.3,4493.0,0.6859]
[1759695412189,0.00192793,4493.3,4493.1,0.40053]
[1759695412388,0.00192793,4493.3,4493.2,0.7549]
[1759695413495,0.00192793,4493.3,4493.2,1.1421]
[1759695419196,0.00192793,4493.3,4493.2,0.9191]
[1759695419500,0.00192793,4493.3,4493.2,1.1421]
[1759695420499,0.51422793,4493.3,4493.2,0.4191]
[1759695420697,0.51422793,4493.3,4493.2,0.9081]
[1759695421199,0.00192793,4493.3,4493.2,0.9081]
[1759695425898,3.2078,4494.3,4494.2,0.9191]
[1759695426391,3.2078,4494.3,4494.2,0.6851]
[1759695426595,3.4692,4494.3,4494.2,0.6851]
[1759695426997,3.87695946,4494.3,4494.2,0.6851]
[1759695427798,4.12785946,4494.3,4494.2,0.6851]
[1759695430804,0.4061,4493.2,4492.9,0.3872]
[1759695430999,1.92714761,4493.2,4492.9,0.3872]
[1759695431199,1.92714761,4493.2,4493.0,0.223]
[1759695432208,5.13494761,4493.2,4492.9,0.223]
[1759695432803,5.13494761,4493.2,4492.9,0.6102]
[1759695433808,5.13494761,4493.2,4492.5,0.154]
[1759695433998,5.13494761,4493.2,4492.7,0.223]
[1759695435103,5.53546761,4493.2,4492.7,0.223]
[1759695435410,5.13494761,4493.2,4492.7,0.223]
[1759695436407,5.53546761,4493.2,4492.7,0.223]
[1759695437308,5.53546761,4493.2,4492.6,0.6102]
[1759695437697,5.13494761,4493.2,4492.6,0.6102]
[1759695437901,5.13494761,4493.2,4492.6,0.223]
[1759695439004,5.13494761,4493.2,4492.4,0.4069]
[1759695439202,5.13494761,4493.2,4492.5,0.223]
[1759695439712,5.13494761,4493.2,4492.6,0.4069]
[1759695440207,5.13494761,4493.2,4492.8,0.4069]
[1759695442808,5.13494761,4493.2,4492.2,4.79648]
[1759695443105,5.13494761,4493.2,4492.4,0.6299]
[1759695443813,0.9241,4492.5,4492.4,0.68]
[1759695444612,0.9241,4492.5,4492.4,0.93052063]
[1759695445910,0.2738,4492.8,4492.7,0.9279]
[1759695446313,0.9241,4492.8,4492.7,0.021]
[1759695446515,0.9241,4492.8,4492.7,0.2941]
[1759695446720,0.9241,4492.8,4492.7,0.2731]
[1759695447308,0.6912,4492.5,4492.4,0.27572063]
[1759695447613,1.0897,4492.5,4492.4,0.52362063]
[1759695447812,1.0897,4492.5,4492.4,0.93052063]
[1759695448904,1.0897,4492.5,4492.4,0.27572063]
[1759695449215,0.3985,4492.4,4492.2,3.2078]
[1759695449416,0.9241,4492.3,4492.2,3.4809]
[1759695450113,0.9241,4492.3,4492.2,3.70568914]
[1759695450413,0.9241,4492.3,4492.2,3.48268914]
[1759695450609,0.9241,4492.3,4492.2,0.22478914]
[1759695451213,0.9241,4492.3,4492.2,0.49788914]
[1759695452113,0.9241,4492.3,4492.2,0.00178914]
[1759695452918,0.9241,4492.3,4492.2,0.27488914]
[1759695453818,0.9241,4492.3,4491.9,0.223]
[1759695454119,0.8359,4492.0,4491.9,0.755]
[1759695454514,1.1083,4492.0,4491.9,0.755]
[1759695454812,1.1083,4492.0,4491.9,0.00212409]
[1759695455613,2.11704761,4492.0,4491.9,0.00212409]
[1759695455808,2.11704761,4492.0,4491.7,3.4308]
[1759695455809,0.40064,4491.9,4491.7,3.4308]
[1759695456016,0.5367,4491.3,4491.2,3.2078]
[1759695456220,0.9549,4491.3,4491.2,3.2078]
[1759695456813,0.9549,4491.3,4491.2,3.20980141]
[1759695457118,0.9549,4491.3,4491.2,3.43280141]
[1759695457619,0.9549,4491.3,4491.2,3.70330141]
[1759695458213,0.9549,4491.3,4491.2,3.20980141]
[1759695458414,0.9549,4491.3,4491.2,3.43280141]
[1759695459922,0.9549,4491.3,4491.2,3.70330141]
[1759695460417,0.9549,4491.3,4491.2,3.96480141]
[1759695462722,0.9549,4491.3,4491.2,0.27250141]
[1759695463020,0.9549,4491.3,4491.2,0.49550141]
[1759695467022,0.6825,4491.3,4491.2,0.96540141]
[1759695467324,0.6825,4491.3,4491.2,0.75700141]
[1759695467725,0.9553,4491.3,4491.2,0.75700141]
[1759695470820,0.9553,4491.3,4491.2,0.22500141]
[1759695472817,0.9553,4491.3,4491.1,0.223]
[1759695473927,0.9553,4491.3,4491.2,0.2631]
[1759695474122,0.9553,4491.3,4491.2,0.5436]
[1759695474524,0.3872,4491.4,4491.3,0.88899]
[1759695474726,0.3872,4491.4,4491.3,1.15209]
[1759695476027,0.3872,4491.4,4491.3,0.65209]
[1759695476320,0.6546,4491.4,4491.3,0.84498]
[1759695476927,0.3872,4491.4,4491.3,0.95348]
[1759695477125,0.3872,4491.4,4491.3,1.17648]
[1759695479131,0.6546,4491.4,4491.3,1.06798]
[1759695481533,0.9274,4491.4,4491.3,0.66729]
[1759695482634,0.3872,4491.4,4491.3,0.77579]
[1759695483023,0.1534,4492.0,4491.3,0.3315]
[1759695483231,1.0808,4492.0,4491.9,0.3472]
[1759695483634,1.0808,4492.0,4491.8,0.0735]
[1759695483833,1.0808,4492.0,4491.9,0.223]
[1759695486638,1.0808,4492.0,4491.8,0.223]
[1759695487340,0.1533,4491.5,4491.4,1.58868]
[1759695487538,1.0807,4491.5,4491.4,1.81168]
[1759695488141,0.8079,4491.5,4491.4,1.81168]
[1759695495247,0.5405,4491.5,4491.4,1.81168]
[1759695495443,0.1534,4492.0,4491.9,0.40063]
[1759695495444,0.5406,4492.0,4491.9,0.40063]
[1759695495642,0.5406,4492.0,4491.9,1.8249556]
[1759695495848,0.808,4492.0,4491.9,1.8249556]
[1759695498242,0.808,4492.0,4491.9,0.223]
[1759695502050,1.0808,4492.0,4491.9,0.223]
[1759695506947,0.4006,4492.0,4491.9,5.223]
[1759695507252,0.2708,4492.8,4492.7,0.5391]
[1759695507555,0.5264,4492.8,4492.7,1.97349532]
[1759695507945,0.5264,4492.8,4492.7,2.35289532]
[1759695508853,0.1533,4493.0,4492.7,2.35289532]
[1759695509043,0.2708,4493.2,4493.1,0.40052]
[1759695509247,0.6714,4493.2,4493.1,1.16262]
[1759695509648,0.6714,4493.2,4493.1,1.54202]
[1759695511157,0.6714,4493.2,4493.1,1.72793014]
[1759695511655,0.4006,4493.2,4493.1,1.72793014]
[1759695511853,0.1666,4493.0,4492.6,4.80689733]
[1759695512052,0.927,4492.7,4492.6,4.80689733]
[1759695512254,0.927,4492.7,4492.6,5.02989733]
[1759695512558,0.927,4492.7,4492.6,3.6942]
[1759695512855,0.927,4492.7,4492.6,5.29329733]
[1759695513045,0.927,4492.7,4492.6,5.07029733]
[1759695513249,0.927,4492.7,4492.6,3.6942]
[1759695513857,0.927,4492.7,4492.6,3.9699]
[1759695514150,0.1666,4493.0,4492.9,0.40055]
[1759695514352,0.1533,4493.5,4492.9,1.1446]
[1759695514551,3.48,4493.7,4493.6,0.5417]
[1759695514757,0.2722,4493.7,4493.6,1.1446]
[1759695515151,0.6622,4493.7,4493.6,1.1446]
[1759695516157,0.00165946,4494.3,4493.9,0.9216]
[1759695516354,0.00165946,4494.3,4493.7,3.2078]
[1759695516355,0.5546,4493.8,4493.7,3.2078]
[1759695516659,0.9446,4493.8,4493.7,3.6979]
[1759695516853,0.9446,4493.8,4493.7,3.9725]
[1759695517862,0.9446,4493.8,4493.7,4.3524]
[1759695518158,0.9446,4493.8,4493.7,3.9725]
[1759695518855,0.9446,4493.8,4493.7,4.75287]
[1759695519657,0.39165946,4494.3,4494.2,0.5417]
[1759695519855,0.39165946,4494.3,4494.2,1.1446]
[1759695520554,0.00165946,4494.3,4494.2,2.35599532]
[1759695522763,1.0981,4494.0,4493.9,0.66755]
[1759695522965,1.0981,4494.0,4493.9,1.54505]
[1759695523964,0.39,4494.0,4493.9,1.54505]
[1759695524158,0.39165946,4494.3,4494.2,1.32203]
[1759695524462,3.2078,4496.9,4496.3,0.3799]
[1759695524661,3.2078,4496.9,4496.8,2.13299532]
[1759695524964,0.6622,4496.9,4496.8,2.24999532]
[1759695525158,0.9446,4496.9,4496.8,0.6587]
[1759695525353,0.94666873,4496.9,4496.8,0.66119648]
[1759695525758,3.3613,4497.5,4496.8,0.66119648]
[1759695525759,3.2078,4497.5,4496.8,6.6054918]
[1759695525963,0.6842,4497.9,4497.8,0.5417]
[1759695526166,0.9666,4497.9,4497.8,0.7647]
[1759695527056,0.9666,4497.9,4497.0,3.2078]
[1759695527057,0.39,4497.8,4497.0,3.2078]
[1759695527257,0.9446,4497.2,4497.1,0.4901]
[1759695527458,0.9446,4497.2,4497.1,1.1417]
[1759695527965,2.29152678,4498.0,4497.1,5.7647]
[1759695528168,0.9367,4498.8,4498.7,0.2733]
[1759695528369,0.9367,4498.8,4498.7,0.4963]
[1759695528562,0.9367,4498.8,4498.7,0.223]
[1759695529165,0.93927812,4498.8,4498.7,0.223]
[1759695530465,0.93927812,4498.8,4498.7,0.4963]
[1759695532971,0.93927812,4498.8,4498.1,3.2078]
[1759695532972,0.5407,4498.2,4498.1,3.2078]
[1759695533171,0.9367,4498.2,4498.1,3.4308]
[1759695533574,0.9367,4498.2,4498.1,3.7041]
[1759695533773,0.9367,4498.2,4498.1,3.9737]
[1759695534867,0.9367,4498.2,4498.1,0.7659]
[1759695535578,0.9367,4498.2,4498.1,0.4963]
[1759695536277,0.9367,4498.2,4498.1,0.7659]
[1759695536776,0.1603,4498.0,4497.6,3.2078]
[1759695536969,0.9367,4497.7,4497.6,3.4811]
[1759695537176,0.9367,4497.7,4497.6,3.7041]
[1759695537376,0.9367,4497.7,4497.6,3.9737]
[1759695537676,0.9367,4497.7,4497.6,4.3507]
[1759695537980,0.9367,4497.7,4497.6,3.9737]
[1759695540772,0.9367,4497.7,4497.6,4.3507]
[1759695541672,0.9367,4497.7,4497.6,3.2078]
[1759695541875,0.9367,4497.7,4496.0,4.61279199]
[1759695541876,0.9367,4497.2,4497.1,3.2078]
[1759695542071,0.9367,4497.2,4497.1,3.4308]
[1759695542777,0.6641,4497.2,4497.1,4.3507]
[1759695543079,0.701,4497.5,4497.4,0.5429]
[1759695543278,0.701,4497.5,4497.4,0.7659]
[1759695543482,1.097,4497.5,4497.4,0.7659]
[1759695544371,0.396,4497.4,4497.1,3.2078]
[1759695544577,0.9367,4497.3,4497.2,0.223]
[1759695545079,0.9367,4497.3,4497.2,0.4963]
[1759695545972,0.9367,4497.3,4497.2,0.7659]
[1759695546980,0.9367,4497.3,4497.2,1.1429]
[1759695547282,0.396,4497.5,4497.4,0.9199]
[1759695547475,0.396,4497.5,4497.4,1.1429]
[1759695549070,0.4284,4498.0,4497.9,0.2733]
[1759695549276,1.097,4498.0,4497.9,0.4963]
[1759695549477,1.097,4498.0,4497.9,0.223]
[1759695550181,0.9367,4497.2,4497.1,3.2078]
[1759695550577,0.9367,4497.2,4497.1,3.4308]
[1759695551885,0.9367,4497.2,4497.1,3.5967]
[1759695552873,0.9367,4497.2,4497.1,3.4308]
[1759695553478,0.9367,4497.2,4497.1,3.2078]
[1759695553684,1.94341939,4497.2,4497.1,3.4308]
[1759695554676,0.9367,4496.9,4496.8,0.00249648]
[1759695554881,0.9367,4496.9,4496.8,0.22549648]
[1759695555585,0.9367,4496.9,4496.8,0.39139648]
[1759695555783,0.396,4496.9,4496.8,1.66771587]
[1759695556282,0.6641,4496.9,4496.8,1.56401587]
[1759695556490,0.9367,4496.9,4496.8,0.22549648]
[1759695557578,0.9367,4496.9,4496.8,0.00249648]
[1759695557781,0.9367,4496.9,4496.8,0.22549648]
[1759695559591,0.9367,4496.9,4496.8,0.223]
[1759695560687,0.9367,4496.9,4496.8,0.22468022]
[1759695561995,0.9367,4496.9,4496.8,0.00168022]
[1759695562196,0.9367,4496.9,4496.8,0.22468022]
[1759695563905,0.9367,4496.9,4496.8,0.223]
[1759695564912,0.9367,4496.9,4496.8,0.22562552]
[1759695566600,0.9367,4496.9,4496.8,0.38812552]
[1759695567505,0.9367,4496.9,4496.8,0.55062552]
[1759695571608,0.9367,4496.9,4496.8,0.38812552]
[1759695571812,0.9367,4496.9,4496.8,0.22562552]
[1759695576419,0.9367,4496.9,4496.8,1.54694491]
[1759695576714,0.6641,4496.9,4496.8,1.64524491]
[1759695577121,0.396,4496.9,4496.8,1.64524491]
[1759695577415,0.396,4496.9,4496.8,3.23689596]
[1759695577920,0.1603,4497.5,4496.9,0.40019]
[1759695578215,0.6703,4497.4,4497.3,1.72146939]
[1759695578413,0.6703,4497.4,4497.3,1.94446939]
[1759695579414,0.9222,4497.4,4497.3,1.94446939]
[1759695579817,0.9222,4497.4,4497.3,1.54431939]
[1759695580116,0.9222,4497.4,4497.3,0.223]
[1759695580620,0.9222,4497.4,4497.2,3.60796]
[1759695580621,0.4149,4497.3,4497.2,3.60796]
[1759695580921,0.6703,4497.3,4497.2,4.14556]
[1759695581617,0.6703,4497.3,4497.2,5.73721105]
[1759695582219,0.9222,4497.3,4497.2,0.223]
[1759695582913,0.6703,4497.2,4497.1,1.59165105]
[1759695583218,0.9222,4497.2,4497.1,1.81465105]
[1759695583916,0.9222,4497.2,4497.1,1.59165105]
[1759695584119,0.9222,4497.2,4497.1,1.81465105]
[1759695587221,0.9222,4497.2,4497.1,1.59165105]
[1759695587418,0.9222,4497.2,4497.1,1.81465105]
[1759695589423,0.9222,4497.2,4497.1,1.97195105]
[1759695589619,0.4149,4497.2,4497.1,2.11805105]
[1759695589816,0.4149,4497.2,4497.1,2.20935105]
[1759695591524,0.5376,4497.5,4497.4,0.3835]
[1759695591716,0.5376,4497.5,4497.4,3.8143]
[1759695592117,0.5376,4497.5,4497.4,4.21444]
[1759695593326,0.8059,4497.5,4497.4,0.5152]
[1759695593625,1.0657,4497.5,4497.4,0.5152]
[1759695595326,1.0657,4497.5,4497.4,3.723]
[1759695595523,1.0657,4497.5,4497.4,3.5769]
[1759695595720,1.0657,4497.5,4497.4,3.723]
[1759695603037,0.9054,4497.3,4497.2,1.59165105]
[1759695603333,0.9054,4497.3,4497.2,1.81465105]
[1759695605327,0.9054,4497.3,4497.2,0.223]
[1759695606631,0.9054,4497.3,4497.2,0.3691]
[1759695610534,0.9054,4497.3,4497.2,0.223]
[1759695611634,0.9054,4497.3,4497.2,0.3691]
[1759695613435,0.9054,4497.3,4497.2,0.5152]
[1759695616039,0.9054,4497.3,4497.2,0.3691]
[1759695618043,0.6456,4497.3,4497.2,0.5928]
[1759695618243,0.3773,4497.3,4497.2,0.5928]
[1759695619341,0.427,4498.0,4497.9,0.6483]
[1759695619642,0.427,4498.0,4497.9,0.8713]
[1759695619842,0.8041,4498.0,4497.9,0.8713]
[1759695621051,1.0771,4498.0,4497.9,0.8713]
[1759695622740,1.0771,4498.0,4497.6,1.6007259]
[1759695623036,0.5397,4497.7,4497.5,4.8085259]
[1759695623240,0.3771,4497.6,4497.5,4.8085259]
[1759695623440,0.9168,4497.6,4497.5,4.8085259]
[1759695623838,0.9168,4497.6,4497.5,5.1556259]
[1759695624142,0.9168,4497.6,4497.5,5.2797259]
[1759695625740,0.9168,4497.6,4497.5,2.0719259]
[1759695625937,0.9168,4497.6,4497.5,5.2797259]
[1759695626839,0.9168,4497.6,4497.5,2.0719259]
[1759695627043,0.9168,4497.6,4497.5,5.2797259]
[1759695628145,0.9168,4497.6,4497.5,2.0719259]
[1759695628344,0.9168,4497.6,4497.5,5.2797259]
[1759695628538,0.9168,4497.6,4497.5,5.0315259]
[1759695629342,0.9168,4497.6,4497.5,5.1556259]
[1759695630941,0.9168,4497.6,4497.5,1.9478259]
[1759695631145,0.9168,4497.6,4497.5,0.3471]
[1759695631347,0.9168,4497.6,4497.5,1.9478259]
[1759695631545,0.9168,4497.6,4497.5,0.3471]
[1759695632043,0.9168,4497.6,4497.5,0.4712]